bitfinex-derivatives/quotes_SOLF0:USTF0_20250716
["timestamp","ask_amount","ask_price","bid_price","bid_amount"]
[1752703360315,3.23474374,175.0,174.93,3.33]
[1752703360316,3.28,174.95,174.93,3.33]
[1752703360712,3.28,174.95,174.92,3.33]
[1752703361710,3.28,174.95,174.91,8.94874374]
[1752703361711,8.9923,174.97,174.94,3.33]
[1752703361914,8.9923,174.97,174.96,3.33]
[1752703363223,3.28,174.97,174.96,3.33]
[1752703363625,126.58500207,175.02,174.96,3.33]
[1752703363831,3.28,175.01,174.95,8.94764374]
[1752703364019,3.28,175.01,174.97,3.33]
[1752703364418,126.58500207,175.02,174.95,8.94764374]
[1752703364419,126.58500207,175.02,174.98,3.33]
[1752703364927,5.7116,174.99,174.98,3.33]
[1752703365127,8.9916,174.99,174.97,3.23474374]
[1752703365328,3.28,174.98,174.97,6.56474374]
[1752703367330,3.28,174.98,174.97,3.33]
[1752703367524,3.28,174.97,174.94,3.23474374]
[1752703367728,3.23474374,175.01,174.92,3.23474374]
[1752703367925,3.23474374,175.0,174.93,3.33]
[1752703368131,3.23474374,175.0,174.93,8.94804374]
[1752703368132,5.712,174.98,174.93,8.94804374]
[1752703368432,3.28,174.96,174.95,3.33]
[1752703368625,3.28,174.98,174.87,172.91474374]
[1752703368830,3.28,174.98,174.97,3.33]
[1752703369327,3.28,174.98,174.88,3.33]
[1752703369530,126.58500207,175.02,174.96,3.33]
[1752703369720,494.0,175.05,174.98,3.33]
[1752703369928,3.28,175.01,174.88,173.09]
[1752703370121,3.28,175.01,174.94,3.33]
[1752703370434,3.28,175.01,174.95,3.23474374]
[1752703370924,494.0,175.05,174.99,3.23474374]
[1752703371125,3.28,175.01,175.0,3.33]
[1752703371327,3.28,175.01,174.87,3.23474374]
[1752703371529,3.28,175.01,174.94,3.33]
[1752703371723,3.28,175.0,174.94,3.33]
[1752703371925,3.28,174.96,174.95,3.33]
[1752703372232,3.28,175.04,174.96,3.33]
[1752703372434,3.28,175.04,174.97,6.56474374]
[1752703373329,3.28,174.99,174.97,6.56474374]
[1752703373834,3.28,175.02,174.94,3.23474374]
[1752703374027,3.23474374,175.02,174.94,3.23474374]
[1752703374336,3.28,175.01,174.87,3.23474374]
[1752703374525,3.28,175.01,174.97,3.33]
[1752703374826,169.78,175.06,174.97,3.33]
[1752703374827,3.28,175.0,174.97,3.33]
[1752703375032,3.28,174.99,174.97,3.33]
[1752703375232,3.28,174.99,174.97,3.23474374]
[1752703375431,3.28,174.98,174.97,6.56474374]
[1752703376140,3.28,174.98,174.97,3.33]
[1752703376441,3.28,174.98,174.97,6.56474374]
[1752703376635,5.7114,175.0,174.99,3.33]
[1752703376636,3.28,175.0,174.99,3.33]
[1752703376941,3.23474374,175.04,174.96,3.33]
[1752703377143,3.28,174.97,174.96,3.33]
[1752703377631,3.23474374,175.04,174.96,3.33]
[1752703377632,3.28,175.03,174.96,3.33]
[1752703378032,5.711,175.01,174.96,6.56474374]
[1752703378236,3.28,175.03,174.97,3.33]
[1752703378440,3.28,175.02,174.95,3.33]
[1752703378637,3.28,174.98,174.93,3.23474374]
[1752703378941,3.28,175.0,174.95,3.23474374]
[1752703379138,5.7122,174.98,174.96,3.33]
[1752703379442,3.28,175.0,174.95,3.23474374]
[1752703379638,3.28,175.0,174.96,3.33]
[1752703379941,3.28,174.97,174.96,3.33]
[1752703380344,3.28,174.97,174.95,3.23474374]
[1752703380639,3.23474374,175.03,174.94,3.33]
[1752703380840,3.28,174.95,174.94,3.33]
[1752703383042,3.28,174.95,174.92,3.4]
[1752703383234,3.14,174.94,174.93,3.4]
[1752703383945,3.14,174.93,174.92,3.4]
[1752703384139,3.14,174.93,174.87,3.23474374]
[1752703384347,3.14,174.97,174.89,3.4]
[1752703384645,5.7138,174.93,174.89,3.4]
[1752703384845,3.14,174.91,174.9,3.4]
[1752703385738,3.14,174.91,174.88,3.4]
[1752703385940,3.14,174.9,174.89,3.4]
[1752703386139,3.14,174.9,174.88,3.4]
[1752703386346,3.14,174.89,174.88,3.4]
[1752703386845,3.14,174.88,174.87,3.4]
[1752703387838,8.8546,174.9,174.86,3.23474374]
[1752703388148,3.14,174.89,174.86,6.63474374]
[1752703388340,3.14,174.95,174.86,6.63474374]
[1752703388950,3.14,174.95,174.88,3.23474374]
[1752703389246,3.14,174.95,174.91,3.4]
[1752703389446,5.7138,174.93,174.91,3.4]
[1752703389639,3.14,174.92,174.91,3.4]
[1752703390046,8.8539,174.92,174.91,3.4]
[1752703390348,3.14,174.91,174.9,3.23474374]
[1752703390544,5.7145,174.91,174.88,6.63474374]
[1752703390742,3.14,174.89,174.88,6.63474374]
[1752703391341,5.714,174.92,174.89,3.4]
[1752703391546,3.23474374,174.96,174.88,6.63474374]
[1752703391751,3.14,174.9,174.88,6.63474374]
[1752703391953,3.14,174.9,174.89,3.4]
[1752703393744,3.14,174.99,174.89,3.4]
[1752703393944,3.14,174.99,174.94,3.23474374]
[1752703394146,5.7127,174.96,174.94,3.23474374]
[1752703394449,5.7127,174.96,174.91,5.7139]
[1752703394450,3.14,174.95,174.91,3.23474374]
[1752703394650,3.14,174.95,174.91,3.4]
[1752703395153,5.7133,174.94,174.91,3.4]
[1752703395338,12.70765305,174.96,174.92,3.4]
[1752703395544,3.14,174.95,174.93,3.4]
[1752703395746,12.70765305,174.98,174.87,3.23474374]
[1752703396048,12.70765305,174.98,174.93,3.4]
[1752703396254,3.14,174.97,174.94,3.4]
[1752703396855,5.7126,174.96,174.94,3.4]
[1752703397050,3.14,174.95,174.94,3.4]
[1752703397544,3.14,174.98,174.94,3.4]
[1752703397748,3.14,174.98,174.97,6.63474374]
[1752703398152,5.7119,174.98,174.93,5.7134]
[1752703398359,3.14,174.99,174.94,6.63474374]
[1752703398657,3.14,174.99,174.96,3.4]
[1752703399159,3.14,174.98,174.96,3.4]
[1752703399351,3.14,174.98,174.97,3.4]
[1752703399654,5.7121,174.98,174.96,6.63474374]
[1752703399853,3.14,174.97,174.96,6.63474374]
[1752703400253,3.14,174.97,174.93,5.7133]
[1752703400254,3.14,174.99,174.93,3.23474374]
[1752703400453,3.14,174.99,174.93,3.4]
[1752703400760,3.14,174.99,174.95,6.63474374]
[1752703401156,3.14,174.99,174.95,3.4]
[1752703401356,5.7124,174.97,174.95,3.4]
[1752703401556,3.14,174.96,174.95,3.4]
[1752703402051,3.14,174.96,174.94,3.23474374]
[1752703402357,3.14,174.96,174.93,3.4]
[1752703402757,5.7129,174.95,174.93,3.4]
[1752703403057,3.14,174.94,174.93,3.4]
[1752703403354,3.14,174.97,174.93,3.4]
[1752703403661,3.14,174.96,174.95,3.4]
[1752703403862,8.8527,174.96,174.95,3.4]
[1752703404361,8.8537,174.93,174.91,3.23474374]
[1752703404959,3.14,174.93,174.92,3.4]
[1752703405463,5.7134,174.94,174.92,3.4]
[1752703405764,8.8531,174.95,174.94,3.4]
[1752703406644,12.70765305,174.98,174.93,6.63474374]
[1752703406645,8.8532,174.94,174.93,6.63474374]
[1752703406851,8.8532,174.94,174.86,663.52]
[1752703406852,3.14,174.94,174.91,3.4]
[1752703407053,3.14,174.94,174.91,6.63474374]
[1752703407263,3.14,174.95,174.92,3.4]
[1752703407565,3.14,174.94,174.93,3.4]
[1752703407857,5.7138,174.93,174.91,6.63474374]
[1752703408064,12.70765305,174.96,174.91,6.63474374]
[1752703408065,3.14,174.92,174.91,3.4]
[1752703408363,8.8541,174.92,174.91,3.4]
[1752703408751,12.70765305,174.95,174.91,3.4]
[1752703408952,8.8537,174.93,174.92,3.4]
[1752703409157,3.14,174.93,174.9,6.63474374]
[1752703409356,3.14,174.92,174.91,3.4]
[1752703410260,15.84765305,174.94,174.88,3.23474374]
[1752703410455,15.84765305,174.91,174.86,3.23474374]
[1752703410766,3.14,174.89,174.84,89.52044594]
[1752703411266,3.14,174.91,174.87,3.4]
[1752703411469,3.14,174.91,174.88,3.4]
[1752703411963,12.70765305,174.94,174.89,3.4]
[1752703411964,3.14,174.93,174.89,3.4]
[1752703412164,3.14,174.93,174.88,3.23474374]
[1752703412361,3.14,174.9,174.88,6.63474374]
[1752703412550,5.7145,174.91,174.88,6.63474374]
[1752703412551,3.14,174.89,174.88,6.63474374]
[1752703412754,3.14,174.91,174.88,3.23474374]
[1752703412958,3.13,174.92,174.91,3.22]
[1752703413158,3.13,174.96,174.91,3.22]
[1752703413364,5.7131,174.95,174.92,6.45474374]
[1752703413559,3.13,174.93,174.92,6.45474374]
[1752703413859,3.13,174.96,174.91,3.22]
[1752703414054,3.13,174.93,174.91,3.22]
[1752703414464,3.13,174.93,174.92,3.22]
[1752703414764,3.13,174.92,174.91,3.22]
[1752703415364,3.13,174.94,174.92,3.22]
[1752703415971,5.7127,174.96,174.92,3.23474374]
[1752703416265,5.7127,174.96,174.87,3.23474374]
[1752703416266,3.13,174.97,174.96,3.22]
[1752703416763,3.13,175.01,174.94,3.23474374]
[1752703416963,3.13,175.01,174.95,3.22]
[1752703417660,3.13,174.99,174.96,3.22]
[1752703417853,3.13,175.01,174.95,5.7129]
[1752703418058,3.13,175.01,174.98,3.22]
[1752703419167,3.13,174.99,174.98,3.22]
[1752703420569,3.13,174.99,174.98,0.79095929]
[1752703422571,12.70765305,175.01,174.87,3.23474374]
[1752703422769,3.13,174.99,174.93,3.22]
[1752703422975,3.13,174.99,174.95,3.22]
[1752703423271,3.13,174.97,174.96,3.22]
[1752703423870,3.13,175.0,174.97,3.22]
[1752703424172,3.13,174.99,174.97,3.22]
[1752703424766,3.13,174.98,174.95,3.22]
[1752703424966,3.13,174.96,174.95,3.22]
[1752703425774,12.70765305,175.02,174.94,3.23474374]
[1752703425974,3.13,174.97,174.96,3.22]
[1752703426274,3.13,174.97,174.96,8.9326]
[1752703426469,8.8414,175.0,174.96,8.9326]
[1752703426673,3.13,174.99,174.97,3.22]
[1752703427779,3.13,174.98,174.97,3.22]
[1752703429279,3.13,174.98,174.94,6.45474374]
[1752703429469,3.13,174.98,174.94,3.23474374]
[1752703429671,3.13,174.98,174.95,8.9327]
[1752703429868,3.13,174.97,174.95,8.9327]
[1752703430067,3.13,174.97,174.96,3.22]
[1752703430881,3.13,175.01,174.96,6.45474374]
[1752703431069,12.70765305,175.02,174.96,3.23474374]
[1752703431275,3.13,174.97,174.96,3.22]
[1752703431476,3.13,175.01,174.96,3.22]
[1752703431677,3.13,175.01,174.97,3.22]
[1752703432184,5.7114,175.0,174.97,3.22]
[1752703432682,3.13,174.98,174.97,3.22]
[1752703433783,3.13,174.98,174.96,5.7126]
[1752703433992,3.13,174.97,174.96,8.9326]
[1752703436187,3.13,174.98,174.97,8.9322]
[1752703436687,3.13,174.98,174.97,3.22]
[1752703438083,3.13,174.98,174.97,8.9323]
[1752703439185,12.70765305,175.04,174.99,3.22]
[1752703439380,5.7058,175.17,175.04,3.22]
[1752703439580,3.22465903,175.22,175.14,3.22465903]
[1752703439786,169.5,175.3,175.18,6.44465903]
[1752703439983,3.22465903,175.32,175.24,3.22465903]
[1752703440184,3.22465903,175.32,175.14,3.22465903]
[1752703440185,3.22465903,175.32,175.23,3.22]
[1752703440386,5.703,175.26,175.19,3.22465903]
[1752703440585,3.22465903,175.27,175.19,6.44465903]
[1752703440986,5.25162055,175.29,175.19,8.47162055]
[1752703441187,498.77162055,175.34,175.19,8.47162055]
[1752703441393,5.25162055,175.29,175.19,8.47162055]
[1752703441584,3.13,175.24,175.19,8.47162055]
[1752703441890,3.13,175.24,175.17,5.25162055]
[1752703442187,3.13,175.26,175.19,5.25162055]
[1752703442493,3.13,175.25,175.18,3.22]
[1752703442689,3.13,175.25,175.22,5.25162055]
[1752703442993,3.13,175.25,175.22,3.26]
[1752703443193,5.7029,175.26,175.22,3.26]
[1752703443493,3.27,175.24,175.22,3.26]
[1752703443689,5.7046,175.21,175.16,5.25162055]
[1752703443894,3.27,175.25,175.17,3.26]
[1752703444890,5.7047,175.21,175.17,3.26]
[1752703445191,3.27,175.2,175.15,3.26]
[1752703445393,3.27,175.2,175.13,3.26]
[1752703445590,5.25162055,175.21,175.14,3.26]
[1752703445591,3.27,175.15,175.14,3.26]
[1752703446585,3.27,175.28,175.13,5.25162055]
[1752703446784,3.27,175.26,175.16,3.26]
[1752703447188,3.27,175.24,175.16,3.26]
[1752703447894,5.705,175.2,175.16,3.26]
[1752703448096,3.27,175.19,175.17,3.26]
[1752703448295,5.705,175.2,175.16,3.26]
[1752703448500,8.975,175.2,175.16,3.26]
[1752703450299,8.9751,175.19,175.17,3.26]
[1752703450797,8.9751,175.19,175.18,3.26]
[1752703450987,3.27,175.2,175.14,3.26]
[1752703453097,5.7057,175.18,175.14,3.26]
[1752703453401,8.9757,175.18,175.14,3.26]
[1752703453893,5.7058,175.17,175.13,5.25162055]
[1752703454092,3.27,175.16,175.15,3.26]
[1752703454400,3.27,175.18,175.15,3.26]
[1752703454698,3.27,175.17,175.16,3.26]
[1752703455498,3.27,175.17,175.05,730.16]
[1752703455499,3.27,175.17,175.06,3.26]
[1752703455801,3.27,175.15,175.07,3.26]
[1752703455996,3.27,175.14,175.07,3.26]
[1752703456507,8.9774,175.12,175.07,3.26]
[1752703456795,3.27,175.11,175.07,3.26]
[1752703457002,8.9777,175.11,175.07,3.26]
[1752703457203,3.27,175.11,175.07,3.26]
[1752703458301,3.27,175.1,175.08,3.26]
[1752703458501,3.27,175.09,175.08,3.26]
[1752703459011,3.27,175.1,175.09,3.26]
[1752703459194,5.7079,175.11,175.05,662.54]
[1752703459195,3.27,175.14,175.1,3.26]
[1752703459395,5.7074,175.12,175.11,3.26]
[1752703459608,8.9774,175.12,175.11,3.26]
[1752703461198,3.27,175.1,175.07,3.26]
[1752703461704,5.7074,175.12,175.07,3.26]
[1752703462106,3.27,175.15,175.07,3.26]
[1752703462605,5.25162055,175.14,175.07,3.26]
[1752703462806,3.27,175.13,175.06,3.26]
[1752703463197,5.25162055,175.12,175.06,3.26]
[1752703463496,3.27,175.08,175.07,3.26]
[1752703463805,5.7092,175.07,175.05,3.26]
[1752703464000,3.27,175.06,175.05,3.26]
[1752703464811,3.27,175.07,175.06,3.26]
[1752703465306,5.25162055,175.16,175.06,3.26]
[1752703465508,5.25162055,175.14,175.06,3.26]
[1752703465806,3.27,175.13,175.06,3.26]
[1752703466196,5.708,175.11,175.06,3.26]
[1752703466504,3.27,175.1,175.06,3.26]
[1752703466807,8.9781,175.1,175.06,3.26]
[1752703467605,8.9785,175.09,175.06,3.26]
[1752703467803,3.27,175.09,175.06,3.26]
[1752703469005,5.25162055,175.16,175.06,3.26]
[1752703469199,3.27,175.15,175.06,3.26]
[1752703470012,5.7082,175.1,175.06,3.26]
[1752703470307,3.27,175.15,175.06,3.26]
[1752703470707,5.25162055,175.16,175.06,3.26]
[1752703470708,3.27,175.09,175.06,3.26]
[1752703471503,5.7083,175.1,175.06,3.26]
[1752703471712,8.9783,175.1,175.06,3.26]
[1752703472007,3.27,175.1,175.06,3.26]
[1752703473203,9.0478,175.11,175.06,3.26]
[1752703473505,9.048,175.1,175.06,3.26]
[1752703473711,3.34,175.09,175.06,3.26]
[1752703474311,3.34,175.1,175.04,3.3]
[1752703474810,5.7091,175.07,175.04,3.3]
[1752703475112,3.34,175.1,175.05,3.3]
[1752703475301,5.7085,175.09,175.05,3.3]
[1752703475496,3.34,175.08,175.05,3.3]
[1752703476608,3.34,175.07,175.05,3.3]
[1752703476805,3.34,175.07,175.06,3.3]
[1752703477107,3.22860377,175.09,175.0,3.22860377]
[1752703477315,3.34,175.04,175.01,3.3]
[1752703478111,9.0501,175.04,175.01,3.3]
[1752703478701,5.7101,175.04,175.0,3.22860377]
[1752703478906,3.34,175.03,175.02,3.3]
[1752703482316,3.34,175.03,174.94,3.23024905]
[1752703482522,3.23024905,175.02,174.95,3.3]
[1752703482708,9.0518,174.99,174.95,3.3]
[1752703483419,3.34,174.99,174.95,3.3]
[1752703484312,3.34,175.03,174.98,3.3]
[1752703484504,3.34,175.03,175.0,3.23123058]
[1752703484704,493.24,175.12,175.01,3.3]
[1752703484905,3.34,175.07,175.01,3.3]
[1752703485109,3.34,175.07,175.02,3.23123058]
[1752703485413,3.34,175.06,175.03,3.3]
[1752703485616,3.34,175.06,175.04,3.23123058]
[1752703485811,3.34,175.06,175.05,3.3]
[1752703486011,11.4137,175.14,175.05,3.3]
[1752703486012,3.34,175.13,175.05,6.53123058]
[1752703486317,5.7087,175.08,175.06,3.3]
[1752703486518,9.0487,175.08,175.07,3.3]
[1752703487223,3.34,175.08,175.07,3.3]
[1752703487823,9.0487,175.08,175.07,3.3]
[1752703489922,3.34,175.11,175.03,3.3]
[1752703490317,3.34,175.05,175.04,3.3]
[1752703491714,5.7091,175.07,175.04,3.3]
[1752703491922,3.34,175.06,175.04,3.3]
[1752703492219,3.34,175.06,175.05,3.3]
[1752703492428,9.0493,175.06,175.05,3.3]
[1752703492722,3.34,175.06,175.05,3.3]
[1752703494725,3.34,175.07,175.06,3.3]
[1752703494929,3.34,175.07,175.02,3.3]
[1752703495530,3.34,175.06,175.02,3.3]
[1752703496421,3.34,175.06,175.02,5.7106]
[1752703496724,3.34,175.06,175.03,3.3]
[1752703497327,5.7089,175.08,175.03,3.3]
[1752703497529,3.34,175.07,175.03,3.3]
[1752703498025,3.34,175.09,175.04,3.3]
[1752703498328,3.34,175.08,175.04,5.25954614]
[1752703498527,3.34,175.08,175.05,3.3]
[1752703499029,12.70928893,175.13,175.05,3.3]
[1752703499227,16.04928893,175.12,175.05,3.3]
[1752703499430,12.70928893,175.12,175.05,3.3]
[1752703499726,3.34,175.09,175.05,3.3]
[1752703500630,3.34,175.08,175.05,3.3]
[1752703500929,3.34,175.07,175.05,3.3]
[1752703501228,3.34,175.08,175.05,3.3]
[1752703501426,12.70928893,175.13,175.05,3.3]
[1752703501627,12.70928893,175.14,175.07,3.3]
[1752703501925,3.34,175.11,175.07,3.3]
[1752703502628,9.0477,175.11,175.07,3.3]
[1752703503131,3.34,175.11,175.08,3.34]
[1752703504028,12.70928893,175.15,175.09,5.25954614]
[1752703504232,3.28,175.13,175.1,3.34]
[1752703504531,8.9871,175.13,175.1,3.34]
[1752703507035,8.9871,175.13,175.1,6.5654699]
[1752703507332,5.7074,175.12,175.11,3.34]
[1752703507731,8.9884,175.09,175.02,3.34]
[1752703507934,3.28,175.09,175.06,3.2254699]
[1752703508135,3.28,175.09,175.08,3.34]
[1752703508734,8.9883,175.09,175.08,3.34]
[1752703509335,3.28,175.09,175.05,3.34]
[1752703509539,3.28,175.09,175.06,3.34]
[1752703509938,5.7087,175.08,175.06,3.34]
[1752703510135,3.28,175.07,175.06,3.34]
[1752703510333,3.28,175.07,175.05,3.34]
[1752703510635,3.28,175.06,174.99,3.34]
[1752703510830,3.28,175.01,174.97,3.34]
[1752703511030,3.28,174.98,174.97,3.34]
[1752703511937,3.2254699,175.03,174.97,3.34]
[1752703512140,3.28,175.02,174.97,3.34]
[1752703513634,5.7106,175.02,174.96,5.7125]
[1752703513830,3.28,175.01,174.98,3.34]
[1752703514937,3.28,175.01,174.96,5.7125]
[1752703515137,3.28,175.01,174.98,3.34]
[1752703516336,3.28,175.04,174.97,4.78694378]
[1752703516544,3.28,175.04,174.98,3.34]
[1752703516743,8.99,175.04,174.99,5.7114]
[1752703517042,3.28,175.06,175.0,3.34]
[1752703517738,4.78694378,175.07,174.99,5.7114]
[1752703517936,3.28,175.04,175.01,3.34]
[1752703519143,8.99,175.04,175.01,3.34]
[1752703519348,5.71,175.04,175.01,3.34]
[1752703519645,3.28,175.02,175.01,3.34]
[1752703521543,3.28,175.04,175.01,3.34]
[1752703521740,3.28,175.03,175.02,3.34]
[1752703523049,3.28,175.03,175.0,3.34]
[1752703523345,3.28,175.03,175.01,3.34]
[1752703524541,3.28,175.07,174.98,3.34]
[1752703524746,3.28,175.07,174.94,85.48491217]
[1752703524747,3.28,175.07,175.0,3.34]
[1752703525137,5.7095,175.06,175.01,5.7107]
[1752703525339,3.28,175.07,175.0,3.34]
[1752703525540,3.28,175.07,175.02,3.34]
[1752703525845,3.28,175.04,175.03,3.34]
[1752703526043,3.28,175.04,175.01,3.34]
[1752703526648,3.28,175.04,174.99,4.78694378]
[1752703526951,3.28,175.04,174.94,322.48491217]
[1752703526952,3.28,175.04,175.0,3.34]
[1752703527248,3.28,175.03,175.01,3.34]
[1752703527743,3.28,175.03,174.99,3.34]
[1752703527744,3.28,175.02,174.99,3.34]
[1752703528048,17.49623271,175.07,174.98,3.34]
[1752703528245,17.49623271,175.07,175.0,5.7111]
[1752703528246,3.28,175.04,175.0,5.7111]
[1752703528548,5.7098,175.05,175.0,5.7111]
[1752703528549,3.28,175.03,175.02,3.34]
[1752703529045,3.28,175.03,175.01,3.34]
[1752703529440,3.28,175.02,175.01,3.34]
[1752703529647,3.28,175.02,174.99,3.34]
[1752703529948,3.28,175.01,174.99,3.34]
[1752703530134,3.28,175.0,174.99,3.34]
[1752703530648,3.28,175.0,174.98,3.34]
[1752703530948,3.28,175.0,174.95,3.34]
[1752703531141,3.28,174.98,174.95,3.34]
[1752703531344,3.28,174.98,174.94,91.19791217]
[1752703531547,3.28,174.98,174.96,3.34]
[1752703532140,3.28,174.97,174.96,3.34]
[1752703533248,3.28,174.97,174.94,88.89491217]
[1752703533752,3.17,174.95,174.89,3.41]
[1752703533953,3.17,174.95,174.9,3.41]
[1752703534144,5.7115,175.0,174.95,5.7126]
[1752703534342,3.17,174.99,174.96,3.41]
[1752703534747,3.17,174.99,174.94,3.41]
[1752703535350,3.17,174.99,174.95,3.41]
[1752703535550,3.17,174.98,174.95,3.41]
[1752703535938,8.882,174.98,174.95,3.41]
[1752703536153,3.17,174.97,174.95,3.41]
[1752703536547,3.17,174.96,174.93,3.41]
[1752703537660,3.17,174.96,174.92,5.7138]
[1752703537848,3.17,174.96,174.94,3.41]
[1752703538460,3.17,174.95,174.94,3.41]
[1752703538758,3.17,174.97,174.94,3.41]
[1752703538945,5.7121,174.98,174.94,3.41]
[1752703539146,3.17,174.96,174.94,3.41]
[1752703539447,3.17,174.98,174.95,5.7129]
[1752703539756,3.17,174.98,174.93,3.23176365]
[1752703539757,3.17,174.98,174.96,3.41]
[1752703540157,3.17,175.0,174.96,3.41]
[1752703540346,3.17,175.0,174.98,3.41]
[1752703540547,3.17,175.02,174.98,3.41]
[1752703540862,3.17,175.0,174.99,3.41]
[1752703541050,5.7107,175.02,174.99,3.41]
[1752703541247,12.70928893,175.07,174.9,3.41]
[1752703541555,3.17,175.04,175.01,3.41]
[1752703541858,3.17,175.06,175.02,3.41]
[1752703542155,5.7102,175.04,175.02,3.41]
[1752703542456,3.17,175.03,175.02,3.41]
[1752703543456,8.8803,175.03,175.0,6.64176365]
[1752703543658,3.17,175.02,175.01,3.41]
[1752703544950,8.8806,175.02,175.01,3.41]
[1752703545446,3.17,175.0,174.99,3.41]
[1752703545649,3.17,175.05,174.99,3.41]
[1752703545851,3.17,175.05,174.99,6.64176365]
[1752703546048,3.17,175.05,175.0,3.41]
[1752703546355,3.17,175.04,175.03,3.41]
[1752703548653,8.88,175.04,175.03,3.41]
[1752703548857,8.88,175.04,175.01,3.23176365]
[1752703549161,3.17,175.03,175.02,3.41]
[1752703549359,3.17,175.03,175.01,3.23176365]
[1752703549558,3.17,175.02,175.01,3.41]
[1752703553565,5.7101,175.04,175.01,6.64176365]
[1752703553861,3.17,175.04,175.02,3.41]
[1752703554062,3.17,175.04,175.03,3.41]
[1752703554758,5.71,175.04,175.01,3.23176365]
[1752703555262,3.17,175.03,175.02,3.41]
[1752703556768,3.17,175.02,174.99,3.41]
[1752703557063,3.17,175.02,175.0,3.41]
[1752703557663,3.17,175.03,175.0,3.41]
[1752703558778,5.7103,175.03,174.99,3.41]
[1752703558959,3.17,175.01,174.99,3.41]
[1752703559856,3.17,175.01,174.99,9.1216]
[1752703560058,3.17,175.01,175.0,3.41]
[1752703560465,3.17,175.02,175.0,3.41]
[1752703561066,3.17,175.04,175.01,3.41]
[1752703561271,3.17,175.04,175.01,3.23176365]
[1752703561472,3.17,175.04,175.03,3.41]
[1752703562268,8.8802,175.04,175.03,3.41]
[1752703562870,8.8802,175.04,175.01,6.64176365]
[1752703563078,3.26,175.03,175.02,3.2]
[1752703563774,8.9703,175.03,175.02,3.2]
[1752703564576,3.26,175.03,175.0,3.23176365]
[1752703564769,3.26,175.01,174.93,3.2]
[1752703564970,3.26,174.99,174.93,3.2]
[1752703565174,3.26,174.97,174.94,5.7132]
[1752703565373,3.26,174.97,174.95,3.2]
[1752703565877,3.26,174.99,174.96,3.2]
[1752703566076,3.26,175.0,174.97,3.2]
[1752703567284,15.96928893,175.02,174.99,3.2]
[1752703567580,3.26,175.02,174.99,3.2]
[1752703567777,8.97,175.04,175.0,3.2]
[1752703567984,3.26,175.03,175.0,6.43176365]